fUSD/lending_fUSD_20240708
["ID","MTS","AMOUNT","RATE_DAILY","PERIOD"]
[331537820,1720464632687,-76.56649964,0.00012314,2]
[331537821,1720464632700,-82.59969557,0.00012314,2]
[331537822,1720464632710,-346.90684661,0.00012314,2]
[331537823,1720464632720,-186.26397782,0.00012648,2]
[331537824,1720464632732,-313.73602218,0.00012648,2]
[331537825,1720464632741,-156.45,0.00012694,2]
[331537826,1720464632751,-874.59966578,0.00012701,2]
[331537827,1720464632768,-125.40033422,0.00012701,2]
[331537828,1720464632778,-371.36966578,0.00012937,2]
[331537829,1720464632789,-128.63033422,0.00012937,2]
[331537830,1720464632799,-420.0,0.00012955,2]
[331537831,1720464632808,-250.0,0.00013083,2]
[331537832,1720464632817,-264.43,0.00013083,2]
[331537833,1720464632827,-200.0,0.00013083,2]
[331537834,1720464632836,-2626.00229655,0.00013083,2]
[331537835,1720464632847,-1450.0,0.00013083,2]
[331537836,1720464632858,-4982.1901667,0.00013083,2]
[331537837,1720464632870,-14841.80753675,0.00013083,2]
[331537838,1720464632879,-250.0,0.00013093,2]
[331537839,1720464632889,-378.96,0.00013112,2]
[331537840,1720464632898,-150.99,0.00013128,2]
[331537841,1720464632907,-205.32220319,0.00013128,2]
[331537842,1720464632917,-6228.89922528,0.00013128,2]
[331537843,1720464632926,-661.00852599,0.00013128,2]
[331537844,1720464632935,-2657.64241734,0.00013128,2]
[331537845,1720464632945,-155.45437907,0.00013128,2]
[331537846,1720464632954,-263.58284568,0.00013128,2]
[331537847,1720464632964,-231.83,0.00013318,2]
[331537848,1720464632973,-5549.2039,0.00013417,2]
[331537849,1720464632983,-11771.0,0.00013448,2]
[331537850,1720464632995,-646.03932415,0.00013472,2]
[331537851,1720464633004,-200.0,0.000135,4]
[331537852,1720464633018,-898.38411105,0.00013516,2]
[331537853,1720464633027,-179.90430095,0.00013543,2]
[331537854,1720464633038,-155.18743317,0.00013543,2]
[331537855,1720464633047,-176.22964096,0.00013574,2]
[331537856,1720464633056,-178.74320517,0.00013574,2]
[331537857,1720464633065,-2226.11084423,0.00013574,2]
[331537858,1720464633075,-500.0,0.000136,4]
[331537859,1720464633086,-238.39,0.00013634,2]
[331537860,1720464633095,-250.0,0.00013699,2]
[331537861,1720464633104,-439.78,0.00013699,2]
[331537862,1720464633113,-800.0,0.000137,5]
[331537863,1720464633123,-1100.0,0.000138,5]
[331537864,1720464633132,-155.0,0.00013849,2]
[331537865,1720464633141,-1416.19284,0.0001386,2]
[331537866,1720464633150,-1416.19283,0.0001386,2]
[331537867,1720464633159,-217.57041584,0.00013889,2]
[331537868,1720464633168,-295.3553,0.00013897,2]
[331537869,1720464633177,-3311.47451997,0.00013899,2]
[331537870,1720464633187,-12634.1867,0.000139,2]
[331537871,1720464633196,-11163.1053,0.000139,2]
[331537872,1720464633205,-179.28516623,0.000139,2]
[331537873,1720464633215,-163.90313412,0.000139,2]
[331537874,1720464633224,-1400.0,0.000139,5]
[331537875,1720464633233,-744.89535798,0.000139,2]
[331537876,1720464633242,-2216.8303598,0.000139,2]
[331537877,1720464633251,-189.81975842,0.000139,2]
[331537878,1720464633263,-2608.39769034,0.000139,2]
[331537879,1720464633272,-1862.7,0.00013973,3]
[331537880,1720464633281,-203.94857317,0.0001399,2]
[331537881,1720464633291,-71784.71792783,0.00013997,2]
[331537882,1720464633300,-401.60846043,0.00013999,2]
[331537883,1720464633310,-508942.41324954,0.00014,2]
[331537884,1720464633319,-379280.05732239,0.00014,2]
[331537885,1720464635804,-2766.70916013,0.00014,2]
[331537886,1720464635815,-1192.99431137,0.00014,2]
[331537887,1720464635826,-521.44331218,0.00014,2]
[331537888,1720464635837,-5089.15586786,0.00014,2]
[331537889,1720464635849,-810.42798062,0.00014,2]
[331537890,1720464635860,-2470.24297497,0.00014,2]
[331537891,1720464635871,-263.47322908,0.00014,2]
[331537892,1720464635882,-1528.35103245,0.00014,2]
[331537893,1720464635893,-777.495996,0.00014,2]
[331537894,1720464635904,-607722.77185199,0.00014,2]
[331537895,1720464636000,199.2521534,0.00011199,2]
[331537899,1720464638127,-892.60404061,0.00014,2]
[331537900,1720464638140,-1138.761741,0.00014,2]
[331537901,1720464638166,-3861.57904239,0.00014,2]
[331537902,1720464638178,-343.0725611,0.00014,2]
[331537903,1720464638191,-442.25,0.00014,2]
[331537904,1720464638204,-7570.38815316,0.00014,2]
[331537905,1720464638217,-515.28705452,0.00014,2]
[331537906,1720464638229,-1134.70787623,0.00014,2]
[331537907,1720464638242,-492.55741041,0.00014,2]
[331537908,1720464638255,-2202.95730672,0.00014,2]
[331537909,1720464638271,-57715.69793261,0.00014,2]
[331537910,1720464638283,-901.37718854,0.00014,2]
[331537911,1720464638295,-1631.36205756,0.00014,2]
[331537912,1720464638306,-4852.6012,0.00014,2]
[331537913,1720464638319,-10315.26684458,0.00014,2]
[331537914,1720464638335,-325.63355842,0.00014,2]
[331537915,1720464638348,-916.92440523,0.00014,2]
[331537916,1720464638360,-16175.0,0.00014,2]
[331537917,1720464638372,-365.01416679,0.00014,2]
[331537918,1720464638384,-712.39138912,0.00014,2]
[331537919,1720464638399,-5129.18201277,0.00014,2]
[331537920,1720464638412,-23996.93107085,0.00014,2]
[331537921,1720464638424,-307.07755376,0.00014,2]
[331537922,1720464638436,-703.07606311,0.00014,2]
[331537923,1720464638456,-4674.27324533,0.00014,2]
[331537924,1720464638468,-10091.42915868,0.00014,2]
[331537925,1720464638480,-5213.2416444,0.00014,2]
[331537926,1720464638492,-10057.58,0.00014,2]
[331537927,1720464638504,-541.74,0.00014,2]
[331537928,1720464638520,-1167.56978197,0.00014,2]
[331537931,1720464638536,-12262.31843964,0.00014,2]
[331538044,1720464640083,-351.45791977,0.00014,2]
[331538045,1720464640097,-322.85018007,0.00014,2]
[331538046,1720464640110,-503.4787228,0.00014,2]
[331538047,1720464640123,-4199.72311746,0.00014,2]
[331538048,1720464640136,-13865.96528816,0.00014,2]
[331538049,1720464640149,-20986.11644675,0.00014,2]
[331538050,1720464640162,-3891.36684221,0.00014,2]
[331538051,1720464640175,-843.15773648,0.00014,2]
[331538052,1720464640217,-540.18000005,0.00014,2]
[331538053,1720464640230,-1079.800005,0.00014,2]
[331538054,1720464640242,-4569.08666928,0.00014,2]
[331538055,1720464640255,-778.64096614,0.00014,2]
[331538056,1720464640274,-27940.88974367,0.00014,2]
[331538057,1720464640380,-24104.6103854,0.00014,2]
[331538060,1720464640392,-811.92140584,0.00014,2]
[331538062,1720464640404,-966.90676807,0.00014,2]
[331538132,1720464643064,-695.78167097,0.00014,2]
[331538134,1720464643077,-717.75861333,0.00014,2]
[331538136,1720464643089,-630.18302999,0.00014,2]
[331538148,1720464643282,-1085.140985,0.00014,2]
[331538150,1720464643301,-20743.09103356,0.00014,2]
[331538152,1720464643312,-17592.58799307,0.00014,2]
[331538153,1720464643323,-1224.01061712,0.00014,2]
[331538155,1720464643334,-297.59077079,0.00014,2]
[331538160,1720464643383,-276.224985,0.00014,2]
[331538174,1720464648244,-1129.6983,0.000139,2]
[331538175,1720464648254,-2500.0,0.000139,2]
[331538176,1720464648264,-10486.16150431,0.00014,2]
[331538177,1720464648280,-444.44834743,0.00014,2]
[331538178,1720464648301,-2830.7001,0.00014,2]
[331538179,1720464648527,-119263.43840746,0.00014,2]
[331538196,1720464899328,1265.45332991,0.00011199,2]
[331538199,1720464903864,1329.43311787,0.00011199,2]
[331538211,1720464981800,787.94090939,0.00011199,2]
[331538217,1720465067560,299.38841384,0.00011199,2]
[331538221,1720465135093,168.58,0.00010275,2]
[331538223,1720465151567,341.06,0.0001092,2]
[331538228,1720465234896,19631.30329052,0.00011199,2]
[331538233,1720465292630,380.11778013,0.00011199,2]
[331538238,1720465358641,173.54,0.00010241,2]
[331538246,1720465478168,1902.39925616,0.00011199,2]
[331538249,1720465496880,281.04606408,0.00011199,2]
[331538252,1720465537509,308.00309941,0.00011199,2]
[331538256,1720465579104,13196.59327523,0.00011199,2]
[331538257,1720465587548,297.10016383,0.00011199,2]
[331538258,1720465599078,1299.61506658,0.00011199,2]
[331538259,1720465604333,717.89169523,0.00011199,2]
[331538268,1720465701146,1485.31440358,0.00011199,2]
[331538269,1720465707760,529.95804437,0.00011199,2]
[331538272,1720465722152,324.0,0.00010903,2]
[331538275,1720465762707,213.07312816,0.00011199,2]
[331538312,1720465838201,-709.08266212,0.00012273,2]
[331538315,1720465838227,-358.9537836,0.00012273,2]
[331538321,1720465838289,-365.94406744,0.00012273,2]
[331538322,1720465838308,-200.0,0.00012773,2]
[331538323,1720465838328,-250.0,0.00012786,2]
[331538324,1720465838346,-11610.91,0.00012791,2]
[331538325,1720465838362,-1000.0,0.00012798,2]
[331538326,1720465838380,-250.0,0.000128,2]
[331538327,1720465838399,-1944.36,0.00012801,2]
[331538328,1720465838420,-167.3,0.00012816,2]
[331538329,1720465838439,-500.0,0.00012821,2]
[331538330,1720465838456,-192.36,0.00012843,2]
[331538331,1720465838474,-499.99,0.00013128,2]
[331538332,1720465838490,-324.0,0.00013167,2]
[331538333,1720465838507,-295.89095159,0.00013472,2]
[331538334,1720465838523,-1251.71322753,0.00013472,2]
[331538335,1720465838541,-479.38527587,0.00013472,2]
[331538336,1720465838558,-203.28362236,0.00013472,2]
[331538337,1720465838574,-155.000001,0.00013516,2]
[331538338,1720465838590,-242.43380697,0.00013574,2]
[331538339,1720465838607,-313.82233916,0.00013574,2]
[331538342,1720465838624,-6682.08732554,0.00013574,2]
[331538345,1720465838640,-250.0,0.00013699,2]
[331538346,1720465838656,-219.89,0.00013699,2]
[331538347,1720465838671,-150.0,0.00013736,2]
[331538348,1720465838687,-300.0,0.00013737,2]
[331538349,1720465838702,-150.0,0.00013741,2]
[331538350,1720465838716,-150.0,0.00013741,2]
[331538351,1720465838731,-1500.0,0.00013742,2]
[331538352,1720465838747,-150.0,0.00013753,2]
[331538353,1720465838763,-150.0,0.00013759,2]
[331538354,1720465838779,-1500.0,0.0001376,2]
[331538355,1720465838794,-150.0,0.00013769,2]
[331538356,1720465838811,-150.0,0.0001377,2]
[331538357,1720465838827,-150.0,0.00013772,2]
[331538358,1720465838844,-150.64823718,0.00013781,2]
[331538359,1720465838860,-150.0,0.00013782,2]
[331538360,1720465838875,-150.0,0.00013787,2]
[331538361,1720465838890,-150.0,0.00013791,2]
[331538362,1720465838906,-150.0,0.00013792,2]
[331538363,1720465838922,-150.0,0.0001383,2]
[331538364,1720465838938,-150.0,0.0001384,2]
[331538365,1720465838954,-150.0,0.0001384,2]
[331538366,1720465838971,-150.0,0.00013842,2]
[331538367,1720465838987,-150.0,0.00013843,2]
[331538368,1720465839003,-1400.55359634,0.00013849,7]
[331538369,1720465839019,-154.12627553,0.00013856,2]
[331538370,1720465839035,-150.0,0.0001386,2]
[331538371,1720465839052,-150.0,0.0001386,2]
[331538372,1720465839068,-150.0,0.0001386,2]
[331538373,1720465839086,-150.0,0.0001386,2]
[331538374,1720465839102,-150.0,0.0001386,2]
[331538375,1720465839119,-150.0,0.0001386,2]
[331538376,1720465839137,-150.0,0.0001386,2]
[331538377,1720465839158,-202.77651,0.0001386,2]
[331538378,1720465839174,-944.12855,0.0001386,2]
[331538379,1720465839190,-1500.0,0.00013867,2]
[331538380,1720465839207,-231.38350399,0.00013881,2]
[331538381,1720465839224,-150.0,0.00013883,2]
[331538382,1720465839244,-1500.0,0.00013885,2]
[331538383,1720465839261,-150.0,0.00013895,2]
[331538384,1720465839278,-1707.36,0.00013897,2]
[331538385,1720465839296,-327.775,0.00013899,2]
[331538386,1720465839313,-1000.0,0.000139,2]
[331538387,1720465839330,-175.48904366,0.000139,2]
[331538388,1720465839347,-150.0,0.000139,2]
[331538390,1720465839365,-169.34410155,0.000139,2]
[331538392,1720465839383,-2980.32706791,0.000139,2]
[331538395,1720465839401,-1500.0,0.00013909,2]
[331538397,1720465839418,-150.0,0.00013925,2]
[331538400,1720465839434,-150.0,0.0001393,2]
[331538402,1720465839450,-1000.0,0.0001393,2]
[331538405,1720465839466,-1000.0,0.0001393,2]
[331538407,1720465839485,-1000.0,0.0001393,2]
[331538410,1720465839501,-487.6924,0.0001393,2]
[331538412,1720465839518,-150.0,0.00013941,2]
[331538415,1720465839534,-1500.0,0.00013945,2]
[331538418,1720465839551,-300.0,0.00013949,2]
[331538420,1720465839567,-1500.0,0.00013951,2]
[331538423,1720465839582,-150.0,0.00013956,2]
[331538425,1720465839599,-150.0,0.00013969,2]
[331538428,1720465839615,-150.0,0.00013973,2]
[331538431,1720465839630,-150.0,0.00013975,2]
[331538433,1720465839646,-300.0,0.00013979,2]
[331538436,1720465839661,-150.0,0.00013981,2]
[331538438,1720465839678,-1500.0,0.00013985,2]
[331538441,1720465839695,-150.0,0.0001399,2]
[331538444,1720465839711,-180.02801105,0.00013997,2]
[331538446,1720465839726,-11462.5270198,0.00013998,2]
[331538449,1720465839740,-423990.19842441,0.00013999,2]
[331538452,1720465839759,-1500.0,0.00013999,2]
[331538455,1720465839779,-264.135,0.00013999,2]
[331538457,1720465839799,-3597.56620416,0.00013999,2]
[331538461,1720465839819,-2686.0,0.00013999,2]
[331538463,1720465839840,-34980.52404114,0.00013999,2]
[331538467,1720465839869,-91950.60271245,0.00013999,2]
[331538470,1720465839885,-610.0,0.00014,2]
[331538472,1720465839900,-21221.07518709,0.00014,2]
[331538475,1720465839918,-312.783,0.00014,2]
[331538478,1720465839939,-2883.84825415,0.00014,2]
[331538481,1720465839960,-280.13964654,0.00014,2]
[331538520,1720465840347,-500.87490691,0.00013989,2]
[331538523,1720465840365,-263.25982049,0.00013989,2]
[331538526,1720465840381,-1772.28078345,0.00014,2]
[331538527,1720465840438,-3020.41878,0.00014,2]
[331538530,1720465840469,-1107.68259837,0.00014,2]
[331538533,1720465840491,-600.0,0.00014,2]
[331538671,1720465843684,-328.00238978,0.00014,2]
[331538681,1720465849151,-258.31960914,0.00013574,2]
[331538682,1720465849162,-253.43075151,0.00013574,2]
[331538683,1720465849174,-855.26114574,0.00013574,2]
[331538684,1720465849184,-86.35984923,0.00014,2]
[331538685,1720465849198,-1014.8698506,0.00014,2]
[331538734,1720466123587,1055.32337832,0.00011199,2]
[331538757,1720466426490,889.498354,0.00011199,2]
[331538769,1720466649024,528.93489931,0.00011199,2]
[331538774,1720466742236,2831.82534197,0.00011199,2]
[331538776,1720466757524,885.36042817,0.00011199,2]
[331538780,1720466780628,257.80184351,0.00011143,2]
[331538786,1720466816231,7096.36275677,0.00011199,2]
[331538787,1720466824295,945.60570938,0.00011199,2]
[331538792,1720466905449,8830.617432,0.00011199,2]
[331538799,1720466973071,416.45939279,0.00011199,2]
[331538801,1720466993549,1620.3546795,0.00011199,2]
[331538803,1720467027601,1500.0,0.00011199,2]
[331538811,1720467032544,-352.82,0.00011339,2]
[331538813,1720467032554,-945.87855516,0.00012302,2]
[331538814,1720467032564,-450.75132957,0.00012314,2]
[331538815,1720467032575,-500.0,0.00013097,2]
[331538816,1720467032584,-3382.05011527,0.00013128,2]
[331539016,1720467042957,-14853.13288436,0.00013128,2]
[331539018,1720467042968,-250.0,0.00013226,2]
[331539020,1720467042978,-200.0,0.00013328,2]
[331539022,1720467042989,-1915.0,0.000134,2]
[331539024,1720467042999,-1000.0,0.000134,2]
[331539026,1720467043010,-1000.0,0.000134,2]
[331539029,1720467043022,-364.91102497,0.00013516,2]
[331539031,1720467043031,-648.11006331,0.00013516,2]
[331539033,1720467043044,-365.7631889,0.00013516,2]
[331539035,1720467043055,-359.06627926,0.00013516,2]
[331539037,1720467043065,-3394.60860961,0.00013574,2]
[331539039,1720467043075,-2595.74055892,0.00013574,2]
[331539041,1720467043085,-258.99665836,0.00013574,2]
[331539043,1720467043095,-167.3,0.00013587,2]
[331539044,1720467043104,-205.31,0.00013587,2]
[331539045,1720467043113,-1000.0,0.00013589,2]
[331539046,1720467043123,-352.82,0.00013603,2]
[331539047,1720467043133,-165.43,0.00013651,2]
[331539048,1720467043142,-1286.7738,0.0001386,2]
[331539049,1720467043151,-18001.08424293,0.0001388,2]
[331539051,1720467043161,-3000.0,0.00013887,2]
[331539053,1720467043170,-500.0,0.00013887,2]
[331539055,1720467043180,-3000.0,0.00013888,2]
[331539057,1720467043190,-3000.0,0.00013888,2]
[331539059,1720467043199,-500.0,0.00013888,2]
[331539061,1720467043209,-500.0,0.00013888,2]
[331539063,1720467043219,-500.0,0.00013888,2]
[331539065,1720467043229,-7500.0,0.000139,2]
[331539067,1720467043239,-2095.822448,0.000139,2]
[331539069,1720467043249,-173.9811603,0.000139,2]
[331539071,1720467043259,-2682.2943612,0.000139,2]
[331539073,1720467043270,-366.44506221,0.00013989,2]
[331539075,1720467043280,-180.02801106,0.00013997,2]
[331539077,1720467043290,-392.6396956,0.00013999,2]
[331539079,1720467043300,-237.40957031,0.00013999,2]
[331539081,1720467043310,-1257.22588982,0.00013999,2]
[331539083,1720467043320,-302.10173518,0.00013999,2]
[331539085,1720467043330,-554.0,0.00014,2]
[331539087,1720467043339,-67513.6400672,0.00014,2]
[331539090,1720467043356,-429.26474097,0.00014,2]
[331539092,1720467043367,-678.46643896,0.00014,2]
[331539094,1720467043379,-680.9102,0.00014,2]
[331539107,1720467043490,-150.0,0.00013883,2]
[331539109,1720467043500,-150.0,0.00013965,2]
[331539111,1720467043510,-1040.0,0.00014,2]
[331539113,1720467043522,-466.51281727,0.00014,2]
[331539115,1720467043535,-1594.4435325,0.00014,2]
[331539117,1720467043547,-31880.92797701,0.00014,2]
[331539120,1720467043560,-27662.25195561,0.00014,2]
[331539122,1720467043572,-63302.67658611,0.00014,2]
[331539125,1720467043593,-924.9658362,0.00014,2]
[331539127,1720467043605,-781.93320104,0.00014,2]
[331539130,1720467043621,-449.54,0.00014,2]
[331539131,1720467043633,-277.67829424,0.00014,2]
[331539132,1720467043645,-9177.72180478,0.00014,2]
[331539133,1720467043670,-150.0,0.00013924,2]
[331539134,1720467043680,-150.0,0.00013981,2]
[331539135,1720467043691,-2154.94273917,0.00014,2]
[331539136,1720467043703,-1352.74328221,0.00014,2]
[331539137,1720467043715,-1180.22303273,0.00014,2]
[331539138,1720467043727,-42763.44289436,0.00014,2]
[331539139,1720467044602,-1782.78285612,0.00013574,2]
[331539144,1720467046883,-525.54680353,0.00013574,2]
[331539149,1720467047063,-802.42780061,0.00013574,2]
[331539150,1720467047073,-150.0,0.0001375,2]
[331539151,1720467047083,-150.0,0.00013782,2]
[331539152,1720467047092,-150.0,0.00013783,2]
[331539153,1720467047102,-150.0,0.00013789,2]
[331539154,1720467047111,-150.0,0.00013798,2]
[331539155,1720467047121,-150.0,0.00013807,2]
[331539156,1720467047130,-150.0,0.00013834,2]
[331539157,1720467047139,-150.0,0.0001384,2]
[331539158,1720467047149,-150.0,0.00013844,2]
[331539159,1720467047158,-150.0,0.00013845,2]
[331539160,1720467047168,-150.0,0.0001387,2]
[331539161,1720467047178,-150.0,0.00013965,2]
[331539162,1720467047187,-300.0,0.00013986,2]
[331539163,1720467047197,-23427.63991375,0.00014,2]
[331539164,1720467209300,3631.02596409,0.00011199,2]
[331539165,1720467304766,1271.86854711,0.00011199,2]
[331539166,1720467342944,99524.76306988,0.000112,2]
[331539167,1720467354163,205.0,9.8e-05,2]
[331539169,1720467424049,155.38062721,0.00011199,2]
[331539170,1720467446468,590.8887786,0.00011199,2]
[331539172,1720467458423,241.44985364,0.00011199,2]
[331539173,1720467468976,317.53,0.00010594,2]
[331539174,1720467578391,689.35796756,0.00011199,2]
[331539175,1720467588744,921.27116721,0.00011199,2]
[331539176,1720467626285,19626.7662442,0.00011199,2]
[331539177,1720467692640,500.0,0.00027,120]
[331539178,1720467703330,167.79,9.886e-05,2]
[331539180,1720467759657,155.0,0.00011199,2]
[331539182,1720467831277,346.55980804,0.00011199,2]
[331539184,1720467901007,380.32591715,0.00011199,2]
[331539186,1720467947235,263.50285156,0.00011199,2]
[331539187,1720467980814,2738.43275453,0.00011199,2]
[331539188,1720468021276,1630.73333368,0.00011199,2]
[331539189,1720468050440,301.65,0.00010355,2]
[331539190,1720468057241,500.0,0.00027,120]
[331539191,1720468071436,996.69870154,0.00027,120]
[331539192,1720468110867,5599.94548789,0.00011199,2]
[331539193,1720468133872,3393.88143666,0.00011199,2]
[331539194,1720468134335,6227.56607037,0.00011199,2]
[331539195,1720468173771,865.03845284,0.00011199,2]
[331539196,1720468175672,2272.64104107,0.00011199,2]
[331539197,1720468193056,1500.0,0.00011199,2]
[331539198,1720468223809,491.51450592,0.00011199,2]
[331539199,1720468231641,-165.43,0.00012128,2]
[331539200,1720468231660,-427.19,0.0001217,2]
[331539201,1720468231677,-250.0,0.0001223,2]
[331539202,1720468231693,-300.0,0.0001223,2]
[331539203,1720468231710,-200.0,0.00012231,2]
[331539204,1720468231726,-10834.84933735,0.00012231,2]
[331539205,1720468232550,-7769.37066265,0.00012231,2]
[331539206,1720468232566,-3330.62933735,0.00012273,2]
[331539246,1720468239855,-347.78074878,0.0001207,2]
[331539247,1720468239913,-737.18720954,0.0001207,2]
[331539248,1720468239923,-2058.55702629,0.00012273,2]
[331539249,1720468239934,-412.61839352,0.00012273,2]
[331539250,1720468239944,-156.97678549,0.00012273,2]
[331539251,1720468239954,-155.38783042,0.00012273,2]
[331539252,1720468239964,-328.93658441,0.00012273,2]
[331539253,1720468239974,-500.0,0.00012291,2]
[331539254,1720468239984,-297.74410483,0.00012302,2]
[331539255,1720468239994,-717.89169523,0.00012302,2]
[331539256,1720468240005,-1890.82858828,0.00012302,2]
[331539257,1720468240015,-388.50645422,0.00012302,2]
[331539258,1720468240030,-258.88603077,0.00012302,2]
[331539259,1720468240041,-221.42714097,0.00012302,2]
[331539260,1720468240051,-613.20726568,0.00012302,2]
[331539261,1720468240062,-155.10440258,0.00012302,2]
[331539262,1720468240072,-155.0,0.00012302,2]
[331539263,1720468240082,-431.16964569,0.00012302,2]
[331539265,1720468240092,-500.0,0.00012303,2]
[331539266,1720468240102,-3886.42,0.00012354,2]
[331539268,1720468240113,-2575.21,0.00012357,2]
[331539269,1720468240122,-150.0,0.00012372,2]
[331539271,1720468240132,-433.32,0.000124,2]
[331539272,1720468240143,-190.71,0.00012416,2]
[331539274,1720468240158,-941.62,0.00012425,2]
[331539276,1720468240177,-1000.0,0.00012426,2]
[331539277,1720468240197,-250.0,0.00012431,2]
[331539279,1720468240207,-5362.37,0.00012472,2]
[331539280,1720468240217,-301.65,0.00012619,2]
[331539282,1720468240228,-278.31377295,0.00013127,2]
[331539283,1720468240239,-2645.23,0.00013276,2]
[331539285,1720468240250,-2645.23,0.00013279,2]
[331539287,1720468240260,-2645.23,0.00013283,2]
[331539289,1720468240276,-2645.23,0.00013286,2]
[331539290,1720468240286,-2645.23,0.0001329,2]
[331539292,1720468240297,-2645.23,0.00013293,2]
[331539293,1720468240306,-2645.23,0.00013297,2]
[331539295,1720468240316,-2645.23,0.000133,2]
[331539296,1720468240326,-2645.23,0.00013304,2]
[331539298,1720468240336,-2645.23,0.00013307,2]
[331539299,1720468240346,-2645.23,0.00013311,2]
[331539301,1720468240355,-2645.23,0.00013314,2]
[331539303,1720468240365,-2645.23,0.00013318,2]
[331539304,1720468240375,-2645.23,0.00013321,2]
[331539306,1720468240384,-2645.23,0.00013325,2]
[331539308,1720468240394,-2645.23,0.00013328,2]
[331539309,1720468240405,-2645.23,0.00013332,2]
[331539311,1720468240414,-2645.23,0.00013335,2]
[331539312,1720468240423,-2645.23,0.00013339,2]
[331539314,1720468240433,-2645.23,0.00013342,2]
[331539316,1720468240443,-420.0,0.00013423,2]
[331539318,1720468240453,-46432.0,0.00013448,2]
[331539319,1720468240462,-912.10489493,0.00013516,2]
[331539321,1720468240472,-299.376,0.00013574,2]
[331539323,1720468240482,-219.9,0.00013699,2]
[331539324,1720468240492,-250.0,0.00013699,2]
[331539326,1720468240501,-1141.0,0.000137,2]
[331539328,1720468240511,-2414.06492508,0.00013799,2]
[331539329,1720468240523,-12825.4324,0.000138,2]
[331539331,1720468240533,-305.72325685,0.00013849,2]
[331539333,1720468240543,-67359.90965406,0.0001386,2]
[331539335,1720468240553,-453.91723,0.0001386,2]
[331539336,1720468240563,-7142.84981125,0.0001388,2]
[331539338,1720468240573,-500.0,0.00013888,2]
[331539340,1720468240583,-3000.0,0.00013888,2]
[331539341,1720468240592,-220.31,0.0001389,3]
[331539343,1720468240602,-1000.0,0.000139,2]
[331539345,1720468240611,-3960.5705,0.000139,2]
[331539346,1720468240620,-8063.2126,0.000139,2]
[331539348,1720468240630,-2032.47251315,0.000139,2]
[331539350,1720468240639,-169.34410155,0.000139,2]
[331539351,1720468240648,-1833.844642,0.000139,2]
[331539353,1720468240657,-821.72871135,0.000139,2]
[331539355,1720468240667,-2094.33181073,0.000139,2]
[331539356,1720468240676,-7786.04244743,0.000139,2]
[331539358,1720468240686,-190.71,0.00013968,2]
[331539360,1720468240695,-1000.0,0.00013979,2]
[331539361,1720468240705,-1257.22588981,0.00013999,2]
[331539363,1720468240715,-501.0,0.00014,2]
[331539365,1720468240724,-1006246.50621718,0.00014,2]
[331539368,1720468240753,-1386.77818654,0.00014,2]
[331539515,1720468242617,-839.10109103,0.00014,2]
[331539516,1720468242629,-699.84660329,0.00014,2]
[331539517,1720468242640,-650.36277005,0.00014,2]
[331539518,1720468242652,-715.36994382,0.00014,2]
[331539519,1720468242663,-1104.06367634,0.00014,2]
[331539520,1720468242675,-831.48450349,0.00014,2]
[331539521,1720468242690,-7091.87739909,0.00014,2]
[331539522,1720468243584,-180204.26649294,0.00014,2]
[331539523,1720468243596,-11505.56338237,0.00014,2]
[331539524,1720468243607,-1599.08934919,0.00014,2]
[331539525,1720468243619,-746.60009089,0.00014,2]
[331539526,1720468243630,-443.07349567,0.00014,2]
[331539527,1720468243641,-1570.55517767,0.00014,2]
[331539528,1720468243660,-16705.25061219,0.00014,2]
[331539529,1720468243671,-427.18428536,0.00014,2]
[331539530,1720468243682,-537.88,0.00014,2]